[Event "Edmonton int."]
[Site "Edmonton CAN"]
[Date "2019.06.18"]
[Round "1.1"]
[White "Porper, Edward"]
[Black "Daggupati, Balaji"]
[Result "1/2-1/2"]
[ECO "D15"]
[WhiteElo "2382"]
[BlackElo "2331"]
[PlyCount "79"]
[EventDate "2019.06.19"]
[EventType "tourn"]
[EventRounds "9"]
[EventCountry "CAN"]
[TimeControl "1"]

1. d4 {[%emt 0:00:03]} d5 {[%emt 0:00:06]} 2. c4 {[%emt 0:00:05]} c6 {
[%emt 0:00:05]} 3. Nf3 {[%emt 0:00:05]} Nf6 {[%emt 0:00:05]} 4. Nc3 {
[%emt 0:00:06]} dxc4 {[%emt 0:00:05]} 5. e4 {[%emt 0:00:20]} b5 {[%emt 0:00:07]
} 6. Be2 {[%emt 0:00:05]} e6 {[%emt 0:03:18]} 7. O-O {[%emt 0:01:11]} Be7 {
[%emt 0:01:30]} 8. a4 {[%emt 0:02:59]} b4 {[%emt 0:01:32]} 9. e5 {
[%emt 0:00:34]} bxc3 {[%emt 0:01:12]} 10. exf6 {[%emt 0:00:02]} Bxf6 {
[%emt 0:02:03]} 11. bxc3 {[%emt 0:00:01]} O-O {[%emt 0:05:36]} 12. Ne5 {
[%emt 0:04:51]} Bxe5 {[%emt 0:05:39]} 13. dxe5 {[%emt 0:00:02]} Qa5 {
[%emt 0:03:28]} 14. Ba3 {[%emt 0:06:50]} Rd8 {[%emt 0:01:13]} 15. Bd6 {
[%emt 0:01:12]} Nd7 {[%emt 0:04:08]} 16. Qd4 {[%emt 0:01:26]} Nb6 {
[%emt 0:01:52]} 17. f4 {[%emt 0:04:31]} Nd5 {[%emt 0:24:40]} 18. Bxc4 {
[%emt 0:09:13]} Qxc3 {[%emt 0:02:42]} 19. Qxc3 {[%emt 0:00:57]} Nxc3 {
[%emt 0:00:06]} 20. Bd3 {[%emt 0:06:57]} a5 {[%emt 0:01:57]} 21. Rfc1 {
[%emt 0:10:04]} Nd5 {[%emt 0:00:17]} 22. g3 {[%emt 0:01:11]} Ba6 {
[%emt 0:00:41]} 23. Be4 {[%emt 0:01:35]} Rdc8 {[%emt 0:08:07]} 24. Rc5 {
[%emt 0:04:14]} Bb7 {[%emt 0:07:09]} 25. Rb1 {[%emt 0:01:39]} Ra7 {
[%emt 0:01:12]} 26. Bxd5 {[%emt 0:04:10]} exd5 {[%emt 0:00:14]} 27. Kf2 {
[%emt 0:00:21]} f5 {[%emt 0:04:17]} 28. e6 {[%emt 0:04:51]} Re8 {[%emt 0:00:19]
} 29. e7 {[%emt 0:00:39]} Kf7 {[%emt 0:03:11]} 30. Rcc1 {[%emt 0:05:55]} Rxe7 {
[%emt 0:01:15]} 31. Bxe7 {[%emt 0:00:10]} Kxe7 {[%emt 0:00:05]} 32. Ke3 {
[%emt 0:05:06]} Kd6 {[%emt 0:01:08]} 33. Kd4 {[%emt 0:06:39]} Ba6 {
[%emt 0:00:13]} 34. Rb6 {[%emt 0:00:44]} Bc4 {[%emt 0:01:02]} 35. Re1 {
[%emt 0:00:23]} Ra8 {[%emt 0:02:40]} 36. h4 {[%emt 0:04:12]} g6 {[%emt 0:01:46]
} 37. Re5 {[%emt 0:02:48]} Rf8 {[%emt 0:07:19]} 38. Re1 {[%emt 0:03:20]} Ra8 {
[%emt 0:00:54]} 39. Re5 {[%emt 0:01:47]} Rf8 {[%emt 0:00:05]} 40. Re1 {
Ke5+ [%emt 00:00:25] Ke4+ c5+ [%emt 0:01:25]} 1/2-1/2

[Event "Edmonton int."]
[Site "Edmonton CAN"]
[Date "2019.06.18"]
[Round "1.2"]
[White "Zierk, Steven"]
[Black "Findlay, Ian"]
[Result "1-0"]
[ECO "B55"]
[WhiteElo "2490"]
[BlackElo "2206"]
[PlyCount "63"]
[EventDate "2019.06.19"]
[EventType "tourn"]
[EventRounds "9"]
[EventCountry "CAN"]
[TimeControl "1"]

1. e4 {[%emt 0:00:08]} c5 {[%emt 0:00:08]} 2. Nf3 {[%emt 0:00:04]} d6 {
[%emt 0:00:07]} 3. d4 {[%emt 0:00:03]} cxd4 {[%emt 0:00:08]} 4. Nxd4 {
[%emt 0:00:06]} Nf6 {[%emt 0:00:06]} 5. f3 {[%emt 0:00:21]} e5 {[%emt 0:00:13]}
6. Nb3 {[%emt 0:00:05]} d5 {[%emt 0:00:11]} 7. Bg5 {[%emt 0:00:23]} d4 {
[%emt 0:00:10]} 8. c3 {[%emt 0:00:59]} Nc6 {[%emt 0:00:17]} 9. Bb5 {
[%emt 0:00:37]} h6 {[%emt 0:00:42]} 10. Bxf6 {[%emt 0:00:31]} Qxf6 {
[%emt 0:00:07]} 11. cxd4 {[%emt 0:00:10]} Bb4+ {[%emt 0:00:11]} 12. Nc3 {
[%emt 0:00:27]} O-O {[%emt 0:00:09]} 13. Bxc6 {[%emt 0:01:48]} bxc6 {
[%emt 0:00:09]} 14. dxe5 {[%emt 0:00:14]} Qxe5 {[%emt 0:00:07]} 15. Qd4 {
[%emt 0:00:07]} Qe7 {[%emt 0:00:05]} 16. O-O {[%emt 0:01:24]} Be6 {
[%emt 0:03:37]} 17. Na4 {[%emt 0:04:42]} Rfd8 {[%emt 0:05:12]} 18. Qe3 {
[%emt 0:02:01]} Rab8 {[%emt 0:17:46]} 19. Rfd1 {[%emt 0:04:43]} Bxb3 {
[%emt 0:01:03]} 20. axb3 {[%emt 0:00:43]} Qe6 {[%emt 0:02:23]} 21. Rac1 {
[%emt 0:08:18]} f5 {[%emt 0:07:50]} 22. e5 {[%emt 0:11:08]} Bf8 {[%emt 0:15:15]
} 23. Rxd8 {[%emt 0:05:57]} Rxd8 {[%emt 0:00:03]} 24. f4 {[%emt 0:03:13]} Qd5 {
[%emt 0:07:04]} 25. h3 {[%emt 0:03:53]} Bb4 {[%emt 0:02:28]} 26. Rf1 {
[%emt 0:10:21]} Bd2 {[%emt 0:05:28]} 27. Qf3 {[%emt 0:01:46]} Qb5 {
[%emt 0:01:40]} 28. e6 {[%emt 0:04:53]} Rd6 {[%emt 0:14:41]} 29. Rf2 {
[%emt 0:01:12]} Bc1 {[%emt 0:07:58]} 30. Rc2 {[%emt 0:09:00]} Bd2 {
[%emt 0:02:00]} 31. e7 {[%emt 0:00:54]} Kf7 {[%emt 0:00:16]} 32. Rxd2 {
[%emt 0:00:28]} 1-0

[Event "Edmonton int."]
[Site "Edmonton CAN"]
[Date "2019.06.18"]
[Round "1.3"]
[White "Shabalov, Alexander"]
[Black "Dave, Bhavik"]
[Result "1-0"]
[ECO "A18"]
[WhiteElo "2528"]
[BlackElo "1818"]
[PlyCount "37"]
[EventDate "2019.06.19"]
[EventType "tourn"]
[EventRounds "9"]
[EventCountry "CAN"]
[TimeControl "1"]

1. c4 {[%emt 0:00:02]} Nf6 {[%emt 0:00:06]} 2. Nc3 {[%emt 0:00:19]} e6 {
[%emt 0:00:46]} 3. e4 {[%emt 0:00:38]} d5 {[%emt 0:00:23]} 4. e5 {
[%emt 0:00:18]} d4 {[%emt 0:00:56]} 5. exf6 {[%emt 0:00:12]} dxc3 {
[%emt 0:00:37]} 6. bxc3 {[%emt 0:00:07]} Qxf6 {[%emt 0:07:06]} 7. Nf3 {
[%emt 0:00:36]} c5 {[%emt 0:02:31]} 8. Bd3 {[%emt 0:00:42]} Nc6 {[%emt 0:06:01]
} 9. O-O {[%emt 0:00:17]} Bd6 {[%emt 0:02:55]} 10. Be4 {[%emt 0:01:20]} O-O {
[%emt 0:09:55]} 11. d4 {[%emt 0:02:01]} h6 {[%emt 0:00:27]} 12. Be3 {
[%emt 0:15:43]} Rd8 {[%emt 0:12:16]} 13. Qb3 {[%emt 0:07:05]} Qe7 {
[%emt 0:13:27]} 14. Rad1 {[%emt 0:02:15]} Bd7 {[%emt 0:11:24]} 15. dxc5 {
[%emt 0:04:56]} Bxc5 {[%emt 0:02:14]} 16. Qxb7 {[%emt 0:00:13]} Bxe3 {
[%emt 0:11:01]} 17. Rxd7 {[%emt 0:06:34]} Qxd7 {[%emt 0:02:30]} 18. Qxd7 {
[%emt 0:00:14]} Bxf2+ {[%emt 0:06:32]} 19. Kxf2 {[%emt 0:00:06]} 1-0

[Event "Edmonton int."]
[Site "Edmonton CAN"]
[Date "2019.06.18"]
[Round "1.4"]
[White "Noritsyn, Nikolay"]
[Black "Balakrishnan, Praveen"]
[Result "1/2-1/2"]
[ECO "A01"]
[WhiteElo "2508"]
[BlackElo "2428"]
[PlyCount "137"]
[EventDate "2019.06.19"]
[EventType "tourn"]
[EventRounds "9"]
[EventCountry "CAN"]
[TimeControl "1"]

1. b3 {[%emt 1:07:17]} e5 2. Bb2 {[%emt 0:00:03]} Nc6 {[%emt 0:00:03]} 3. e3 {
[%emt 0:00:03]} Nf6 {[%emt 0:00:01]} 4. Nf3 {[%emt 0:00:03]} e4 {[%emt 0:00:01]
} 5. Nd4 {[%emt 0:00:04]} Nxd4 {[%emt 0:00:03]} 6. Bxd4 {[%emt 0:00:04]} Be7 {
[%emt 0:00:02]} 7. c4 {[%emt 0:00:04]} b6 8. Nc3 {[%emt 0:00:04]} Bb7 {
[%emt 0:00:02]} 9. g4 {[%emt 0:00:04]} c5 {[%emt 0:00:02]} 10. Be5 {
[%emt 0:00:04]} d6 11. Bf4 {[%emt 0:00:03]} g5 12. Bxg5 {[%emt 0:00:03]} Rg8 {
[%emt 0:00:03]} 13. Bf4 Rxg4 {[%emt 0:00:04]} 14. Bg3 {[%emt 0:00:04]} Rg8 {
[%emt 0:00:01]} 15. Bh3 {[%emt 0:00:05]} h5 {[%emt 0:00:01]} 16. Qc2 {
[%emt 0:00:04]} Ng4 17. O-O-O {[%emt 0:00:05]} h4 {[%emt 0:00:02]} 18. f3 {
[%emt 0:00:04]} exf3 {[%emt 0:00:01]} 19. Qh7 {[%emt 0:00:04]} Rg6 {
[%emt 0:00:03]} 20. Bf4 {[%emt 0:00:08]} f2 {[%emt 0:00:01]} 21. Rhf1 {
[%emt 0:00:05]} Bf3 {[%emt 0:00:04]} 22. Nd5 {[%emt 0:00:01]} Bf8 {
[%emt 0:00:08]} 23. Bxg4 {[%emt 0:00:06]} Rxg4 {[%emt 0:00:04]} 24. Rxf2 {
[%emt 0:00:03]} Bxd5 {[%emt 0:00:05]} 25. cxd5 {[%emt 0:00:02]} Qf6 {
[%emt 0:00:05]} 26. Qe4+ {[%emt 0:00:01]} Kd7 {[%emt 0:00:03]} 27. Qa4+ {
[%emt 0:00:01]} Kd8 {[%emt 0:00:04]} 28. Rdf1 {[%emt 0:00:01]} Bg7 {
[%emt 0:00:03]} 29. Kd1 {[%emt 0:00:03]} Rg6 30. h3 {[%emt 0:00:04]} Qe7 {
[%emt 0:00:02]} 31. Bh2 {[%emt 0:00:02]} f6 {[%emt 0:00:03]} 32. Qc6 {
[%emt 0:00:01]} Rc8 {[%emt 0:00:05]} 33. Qxd6+ {[%emt 0:00:02]} Qxd6 {
[%emt 0:00:02]} 34. Bxd6 {[%emt 0:00:02]} Kd7 {[%emt 0:00:07]} 35. Bh2 {
[%emt 0:00:05]} c4 {[%emt 0:00:02]} 36. bxc4 {[%emt 0:00:03]} Rxc4 {
[%emt 0:00:03]} 37. Rf4 {[%emt 0:00:03]} Rc5 38. Rxh4 {[%emt 0:00:05]} Rxd5 {
[%emt 0:00:03]} 39. Rf2 {[%emt 0:00:06]} f5 40. Rh5 {[%emt 0:00:04]} Ke6 {
[%emt 0:00:06]} 41. a4 {[%emt 0:00:01]} Ra5 {[%emt 0:00:06]} 42. Rh4 {
[%emt 0:00:01]} Rh6 {[%emt 0:00:04]} 43. Rff4 Rg6 {[%emt 0:00:04]} 44. Rc4 {
[%emt 0:00:03]} Rc5 {[%emt 0:00:01]} 45. Rxc5 {[%emt 0:00:04]} bxc5 {
[%emt 0:00:02]} 46. Bb8 {[%emt 0:00:04]} a6 {[%emt 0:00:04]} 47. Ba7 Bf8 {
[%emt 0:00:04]} 48. Rh8 {[%emt 0:00:05]} Be7 {[%emt 0:00:04]} 49. Kc2 {
[%emt 0:00:05]} Kd5 50. a5 {[%emt 0:00:04]} Rg2 {[%emt 0:00:02]} 51. Rh6 {
[%emt 0:00:05]} Bd6 {[%emt 0:00:01]} 52. Rh5 {[%emt 0:00:03]} Rf2 {
[%emt 0:00:04]} 53. Bb6 {[%emt 0:00:03]} Be7 54. h4 {[%emt 0:00:04]} Kc4 {
[%emt 0:00:04]} 55. Rh7 {[%emt 0:00:02]} Bd6 {[%emt 0:00:12]} 56. Rd7 {
[%emt 0:00:04]} Be5 57. Kd1 {[%emt 0:00:03]} f4 {[%emt 0:00:01]} 58. exf4 {
[%emt 0:00:04]} Bxf4 {[%emt 0:00:02]} 59. Bd8 {[%emt 0:00:05]} Rh2 {
[%emt 0:00:05]} 60. Bf6 {[%emt 0:00:02]} Bg3 {[%emt 0:00:03]} 61. Rg7 Bf4 {
[%emt 0:00:09]} 62. Rd7 {[%emt 0:00:03]} Bg3 63. d3+ {[%emt 0:00:04]} Kb4 64.
Rg7 {[%emt 0:00:04]} Bd6 {[%emt 0:00:05]} 65. Rd7 {[%emt 0:00:01]} Bg3 {
[%emt 0:00:03]} 66. Rg7 Bd6 {[%emt 0:00:09]} 67. Rg6 {[%emt 0:00:01]} Bc7 {
[%emt 0:00:04]} 68. Bg5 {[%emt 0:00:04]} Kxa5 {[%emt 0:00:02]} 69. Re6 {
[%emt 0:00:03]} 1/2-1/2

[Event "Edmonton int."]
[Site "Edmonton CAN"]
[Date "2019.06.18"]
[Round "1.5"]
[White "Banerjee, Bitan"]
[Black "Paragua, Mark"]
[Result "1/2-1/2"]
[ECO "E60"]
[WhiteElo "2427"]
[BlackElo "2501"]
[PlyCount "93"]
[EventDate "2019.06.19"]
[EventType "tourn"]
[EventRounds "9"]
[EventCountry "CAN"]
[TimeControl "1"]

1. d4 {[%emt 0:00:18]} Nf6 {[%emt 0:00:18]} 2. c4 {[%emt 0:00:06]} g6 {
[%emt 0:00:13]} 3. Nf3 {[%emt 0:00:06]} Bg7 {[%emt 0:00:32]} 4. e3 {
[%emt 0:00:08]} O-O {[%emt 0:00:24]} 5. Be2 {[%emt 0:00:03]} d5 {[%emt 0:00:40]
} 6. cxd5 {[%emt 0:00:10]} Nxd5 {[%emt 0:00:50]} 7. e4 {[%emt 0:00:08]} Nb6 {
[%emt 0:00:06]} 8. O-O {[%emt 0:00:06]} Bg4 {[%emt 0:04:51]} 9. Nbd2 {
[%emt 0:00:06]} e5 {[%emt 0:03:47]} 10. Nxe5 {[%emt 0:16:02]} Bxe2 {
[%emt 0:00:15]} 11. Qxe2 {[%emt 0:00:04]} Qxd4 {[%emt 0:02:13]} 12. Ndf3 {
[%emt 0:04:55]} Qb4 {[%emt 0:05:04]} 13. Nd3 {[%emt 0:09:19]} Qb5 {
[%emt 0:03:58]} 14. Bf4 {[%emt 0:05:05]} Na6 {[%emt 0:04:40]} 15. Qc2 {
[%emt 0:27:42]} Rad8 {[%emt 0:03:28]} 16. Rad1 {[%emt 0:14:32]} Rfe8 {
[%emt 0:05:22]} 17. e5 {[%emt 0:03:35]} Rd5 {[%emt 0:06:33]} 18. b3 {
[%emt 0:04:05]} Nc5 {[%emt 0:13:07]} 19. Nxc5 {[%emt 0:02:12]} Rxc5 {
[%emt 0:00:05]} 20. Qd2 {[%emt 0:05:54]} Rd5 {[%emt 0:06:11]} 21. Qc2 {
[%emt 0:01:16]} Red8 {[%emt 0:11:51]} 22. h4 {[%emt 0:01:31]} Rxd1 {
[%emt 0:07:21]} 23. Rxd1 {[%emt 0:00:04]} Rxd1+ {[%emt 0:00:03]} 24. Qxd1 {
[%emt 0:00:04]} Nd5 {[%emt 0:00:03]} 25. Bg3 {[%emt 0:01:42]} c6 {
[%emt 0:02:26]} 26. Ng5 {[%emt 0:00:47]} Qb4 {[%emt 0:06:39]} 27. h5 {
[%emt 0:02:30]} h6 {[%emt 0:03:46]} 28. Nf3 {[%emt 0:01:09]} Qe4 {
[%emt 0:04:45]} 29. hxg6 {[%emt 0:00:17]} fxg6 {[%emt 0:00:04]} 30. Qd2 {
[%emt 0:00:42]} b6 {[%emt 0:04:42]} 31. Qc1 {[%emt 0:00:38]} c5 {[%emt 0:00:31]
} 32. Nd2 {[%emt 0:00:42]} Qe2 {[%emt 0:00:48]} 33. Nf3 {[%emt 0:00:15]} Kh7 {
[%emt 0:00:41]} 34. a3 {[%emt 0:00:25]} Qe4 {[%emt 0:00:30]} 35. Kh2 {
[%emt 0:00:11]} Ne7 {[%emt 0:00:29]} 36. Qd2 {[%emt 0:00:34]} Qd5 {
[%emt 0:00:23]} 37. Qc2 {[%emt 0:01:10]} Nf5 {[%emt 0:00:14]} 38. Bf4 {
[%emt 0:00:30]} b5 {[%emt 0:00:46]} 39. a4 {[%emt 0:00:29]} bxa4 {
[%emt 0:00:33]} 40. bxa4 {[%emt 0:00:00]} c4 {[%emt 0:00:39]} 41. Kh1 {
[%emt 0:12:17]} a5 {[%emt 0:06:19]} 42. Nd2 {[%emt 0:11:28]} Qd4 {
[%emt 0:02:17]} 43. Qxc4 {[%emt 0:02:43]} Qxf2 {[%emt 0:00:11]} 44. Ne4 {
[%emt 0:00:43]} Qh4+ {[%emt 0:13:50]} 45. Kg1 {[%emt 0:00:15]} Qe1+ {
[%emt 0:00:11]} 46. Kh2 {[%emt 0:00:05]} Qh4+ {[%emt 0:04:52]} 47. Kg1 {
[%emt 0:00:05]} 1/2-1/2

[Event "Edmonton int."]
[Site "Edmonton CAN"]
[Date "2019.06.19"]
[Round "2.1"]
[White "Daggupati, Balaji"]
[Black "Paragua, Mark"]
[Result "1-0"]
[ECO "B90"]
[WhiteElo "2331"]
[BlackElo "2501"]
[PlyCount "57"]
[EventDate "2019.06.19"]
[EventType "tourn"]
[EventRounds "9"]
[EventCountry "CAN"]
[TimeControl "1"]

1. e4 {[%emt 0:00:03]} c5 {[%emt 0:00:40]} 2. Nf3 {[%emt 0:00:07]} d6 {
[%emt 0:00:07]} 3. d4 {[%emt 0:00:05]} cxd4 {[%emt 0:00:05]} 4. Nxd4 {
[%emt 0:00:07]} Nf6 {[%emt 0:00:07]} 5. Nc3 {[%emt 0:00:07]} a6 {[%emt 0:00:13]
} 6. Qe2 {[%emt 0:00:06]} e5 {[%emt 0:00:22]} 7. Nf5 {[%emt 0:00:07]} d5 {
[%emt 0:01:20]} 8. Bg5 {[%emt 0:00:17]} d4 {[%emt 0:00:14]} 9. O-O-O {
[%emt 0:00:11]} Nc6 {[%emt 0:00:25]} 10. f4 {[%emt 0:00:08]} Qa5 {
[%emt 0:07:39]} 11. fxe5 {[%emt 0:00:14]} dxc3 {[%emt 0:01:42]} 12. exf6 {
[%emt 0:00:12]} g6 {[%emt 0:12:48]} 13. Rd5 {[%emt 0:05:57]} Qxa2 {
[%emt 0:02:59]} 14. bxc3 {[%emt 0:00:19]} gxf5 {[%emt 0:01:50]} 15. exf5+ {
[%emt 0:05:18]} Be6 {[%emt 0:01:29]} 16. Rd3 {[%emt 0:04:18]} Ba3+ {
[%emt 0:02:56]} 17. Kd2 {[%emt 0:00:08]} Qa1 {[%emt 0:08:12]} 18. Qxe6+ {
[%emt 0:02:30]} fxe6 {[%emt 0:13:59]} 19. Be2 {[%emt 0:00:08]} h6 {
[%emt 0:03:34]} 20. Rxa1 {[%emt 0:01:57]} hxg5 {[%emt 0:02:35]} 21. Rxa3 {
[%emt 0:05:15]} exf5 {[%emt 0:00:14]} 22. Rb3 {[%emt 0:09:28]} Na5 {
[%emt 0:07:17]} 23. Rb4 {[%emt 0:00:10]} Kf7 {[%emt 0:11:35]} 24. Rd6 {
[%emt 0:08:40]} Kg6 {[%emt 0:06:53]} 25. g4 {[%emt 0:10:38]} Rxh2 {
[%emt 0:07:33]} 26. gxf5+ {[%emt 0:00:07]} Kh6 {[%emt 0:05:04]} 27. Re4 {
[%emt 0:02:27]} Rf8 {[%emt 0:00:58]} 28. Kc1 {[%emt 0:01:20]} Rf2 {
[%emt 0:01:08]} 29. Re8 {[%emt 0:00:20]} 1-0

[Event "Edmonton int."]
[Site "Edmonton CAN"]
[Date "2019.06.19"]
[Round "2.2"]
[White "Balakrishnan, Praveen"]
[Black "Banerjee, Bitan"]
[Result "1/2-1/2"]
[ECO "A44"]
[WhiteElo "2428"]
[BlackElo "2427"]
[PlyCount "72"]
[EventDate "2019.06.19"]
[EventType "tourn"]
[EventRounds "9"]
[EventCountry "CAN"]
[TimeControl "1"]

1. d4 {[%emt 0:04:16]} c5 {[%emt 0:03:19]} 2. d5 {[%emt 0:00:45]} e5 {
[%emt 0:01:10]} 3. e4 {[%emt 0:02:49]} d6 {[%emt 0:00:05]} 4. Nc3 {
[%emt 0:06:53]} Be7 {[%emt 0:00:07]} 5. Nf3 {[%emt 0:04:48]} Bg4 {
[%emt 0:03:01]} 6. h3 {[%emt 0:06:56]} Bxf3 {[%emt 0:03:14]} 7. Qxf3 {
[%emt 0:00:07]} a6 {[%emt 0:00:27]} 8. Qg3 {[%emt 0:08:28]} g6 {[%emt 0:00:09]}
9. h4 {[%emt 0:06:15]} Nf6 {[%emt 0:03:19]} 10. a4 {[%emt 0:03:56]} Nh5 {
[%emt 0:14:35]} 11. Qh2 {[%emt 0:07:05]} h6 {[%emt 0:10:58]} 12. Be2 {
[%emt 0:02:23]} Ng7 {[%emt 0:00:27]} 13. h5 {[%emt 0:10:50]} gxh5 {
[%emt 0:08:13]} 14. Bxh5 {[%emt 0:06:03]} Bg5 {[%emt 0:00:15]} 15. Qg3 {
[%emt 0:01:21]} Nd7 {[%emt 0:11:12]} 16. Be2 {[%emt 0:04:42]} Rg8 {
[%emt 0:04:10]} 17. f4 {[%emt 0:07:34]} exf4 {[%emt 0:03:50]} 18. Bxf4 {
[%emt 0:00:12]} Qf6 {[%emt 0:00:30]} 19. Bxg5 {[%emt 0:05:45]} hxg5 {
[%emt 0:01:26]} 20. O-O-O {[%emt 0:00:36]} Ne5 {[%emt 0:01:08]} 21. Rdf1 {
[%emt 0:01:38]} Qe7 {[%emt 0:01:44]} 22. Nd1 {[%emt 0:04:07]} O-O-O {
[%emt 0:09:24]} 23. Ne3 {[%emt 0:00:12]} Rh8 {[%emt 0:01:57]} 24. Ng4 {
[%emt 0:01:57]} Nd7 {[%emt 0:10:02]} 25. Qf3 {[%emt 0:00:46]} f6 {
[%emt 0:00:50]} 26. Bd3 {[%emt 0:00:54]} Rdf8 {[%emt 0:01:12]} 27. Rh3 {
[%emt 0:01:06]} Kc7 {[%emt 0:03:56]} 28. Rfh1 {[%emt 0:00:41]} Rxh3 {
[%emt 0:00:43]} 29. Rxh3 {[%emt 0:00:20]} Ne5 {[%emt 0:01:46]} 30. Qg3 {
[%emt 0:01:24]} Ng6 {[%emt 0:01:10]} 31. Rh7 {[%emt 0:00:38]} Rh8 {
[%emt 0:00:27]} 32. Rxh8 {[%emt 0:00:25]} Nxh8 {[%emt 0:00:01]} 33. Qf3 {
[%emt 0:00:25]} Ne8 {[%emt 0:00:05]} 34. Qf5 {[%emt 0:00:34]} Nf7 {
[%emt 0:00:53]} 35. Be2 {[%emt 0:00:31]} Ne5 {[%emt 0:00:47]} 36. a5 {
[%emt 0:00:29]} Kd8 {[%emt 0:01:00]} 1/2-1/2

[Event "Edmonton int."]
[Site "Edmonton CAN"]
[Date "2019.06.19"]
[Round "2.3"]
[White "Dave, Bhavik"]
[Black "Noritsyn, Nikolay"]
[Result "0-1"]
[ECO "A46"]
[WhiteElo "1818"]
[BlackElo "2508"]
[PlyCount "68"]
[EventDate "2019.06.19"]
[EventType "tourn"]
[EventRounds "9"]
[EventCountry "CAN"]
[TimeControl "1"]

1. d4 {[%emt 0:00:00]} e6 {[%emt 0:00:20]} 2. Nf3 {[%emt 0:00:24]} d5 {
[%emt 0:01:12]} 3. g3 {[%emt 0:00:45]} Nf6 {[%emt 0:00:27]} 4. Bg2 {
[%emt 0:00:10]} b5 {[%emt 0:01:14]} 5. O-O {[%emt 0:01:28]} Be7 {[%emt 0:04:23]
} 6. b3 {[%emt 0:00:09]} Ba6 {[%emt 0:02:44]} 7. Bb2 {[%emt 0:03:09]} Nbd7 {
[%emt 0:02:00]} 8. Nfd2 {[%emt 0:13:14]} O-O {[%emt 0:04:21]} 9. e4 {
[%emt 0:02:00]} c5 {[%emt 0:01:30]} 10. dxc5 {[%emt 0:05:26]} Nxc5 {
[%emt 0:00:59]} 11. exd5 {[%emt 0:03:42]} exd5 {[%emt 0:03:55]} 12. Nc3 {
[%emt 0:07:49]} Rc8 {[%emt 0:05:37]} 13. Re1 {[%emt 0:03:17]} Re8 {
[%emt 0:06:13]} 14. Ne2 {[%emt 0:03:06]} Qb6 {[%emt 0:08:18]} 15. Bd4 {
[%emt 0:03:26]} Qc7 {[%emt 0:11:01]} 16. Nf4 {[%emt 0:04:05]} Bb7 {
[%emt 0:00:45]} 17. Be5 {[%emt 0:12:50]} Qa5 {[%emt 0:03:41]} 18. Bh3 {
[%emt 0:08:36]} Rcd8 {[%emt 0:03:29]} 19. Nd3 {[%emt 0:02:00]} Nce4 {
[%emt 0:02:25]} 20. Nf3 {[%emt 0:04:38]} b4 {[%emt 0:11:35]} 21. Qc1 {
[%emt 0:07:03]} Qb5 {[%emt 0:11:08]} 22. Nd4 {[%emt 0:03:58]} Qb6 {
[%emt 0:00:25]} 23. Qe3 {[%emt 0:04:00]} Bf8 {[%emt 0:02:24]} 24. Nf3 {
[%emt 0:02:46]} Nc5 {[%emt 0:07:42]} 25. Qc1 {[%emt 0:02:28]} d4 {
[%emt 0:01:09]} 26. Bg2 {[%emt 0:01:38]} Nce4 {[%emt 0:01:38]} 27. Ng5 {
[%emt 0:00:56]} Nxg5 {[%emt 0:01:30]} 28. Bxb7 {[%emt 0:00:32]} Nh3+ {
[%emt 0:00:19]} 29. Kg2 {[%emt 0:00:24]} Qxb7+ {[%emt 0:00:39]} 30. Kxh3 {
[%emt 0:00:17]} Re6 {[%emt 0:01:24]} 31. Nf4 {[%emt 0:00:51]} Rc6 {
[%emt 0:00:07]} 32. Qd1 {[%emt 0:00:36]} Nd7 {[%emt 0:00:43]} 33. Qf3 {
[%emt 0:00:31]} Rh6+ {[%emt 0:00:14]} 34. Kg4 {[%emt 0:00:32]} f5+ {
[%emt 0:00:16]} 0-1

[Event "Edmonton int."]
[Site "Edmonton CAN"]
[Date "2019.06.19"]
[Round "2.4"]
[White "Findlay, Ian"]
[Black "Shabalov, Alexander"]
[Result "1-0"]
[ECO "B72"]
[WhiteElo "2206"]
[BlackElo "2528"]
[PlyCount "87"]
[EventDate "2019.06.19"]
[EventType "tourn"]
[EventRounds "9"]
[EventCountry "CAN"]
[TimeControl "1"]

1. e4 {[%emt 0:00:00]} c5 {[%emt 0:00:06]} 2. Nf3 {[%emt 0:00:06]} d6 {
[%emt 0:00:05]} 3. d4 {[%emt 0:00:08]} cxd4 {[%emt 0:00:05]} 4. Nxd4 {
[%emt 0:00:11]} Nf6 {[%emt 0:00:05]} 5. Nc3 {[%emt 0:00:10]} g6 {[%emt 0:00:06]
} 6. Be3 {[%emt 0:00:08]} a6 {[%emt 0:00:10]} 7. f3 {[%emt 0:00:06]} b5 {
[%emt 0:00:18]} 8. Qd2 {[%emt 0:00:06]} Bb7 {[%emt 0:00:19]} 9. a4 {
[%emt 0:00:34]} e5 {[%emt 0:01:05]} 10. Nb3 {[%emt 0:00:43]} b4 {[%emt 0:00:52]
} 11. Nd5 {[%emt 0:00:36]} Nxd5 {[%emt 0:00:48]} 12. exd5 {[%emt 0:00:05]} Nd7
{[%emt 0:00:19]} 13. Rd1 {[%emt 0:02:13]} a5 {[%emt 0:00:45]} 14. Bb5 {
[%emt 0:10:32]} Bg7 {[%emt 0:00:06]} 15. O-O {[%emt 0:02:12]} O-O {
[%emt 0:04:19]} 16. c3 {[%emt 0:00:45]} Nb6 {[%emt 0:14:33]} 17. c4 {
[%emt 0:11:48]} Ba6 {[%emt 0:02:08]} 18. Qd3 {[%emt 0:06:58]} Bxb5 {
[%emt 0:05:28]} 19. axb5 {[%emt 0:00:16]} a4 {[%emt 0:02:38]} 20. c5 {
[%emt 0:03:59]} dxc5 {[%emt 0:20:31]} 21. Nxc5 {[%emt 0:00:30]} a3 {
[%emt 0:00:04]} 22. b3 {[%emt 0:10:13]} a2 {[%emt 0:15:50]} 23. Na6 {
[%emt 0:02:45]} Re8 {[%emt 0:00:06]} 24. d6 {[%emt 0:16:25]} f5 {[%emt 0:07:01]
} 25. Qd2 {[%emt 0:04:05]} f4 {[%emt 0:08:02]} 26. Bf2 {[%emt 0:08:14]} e4 {
[%emt 0:01:43]} 27. fxe4 {[%emt 0:00:57]} a1=Q {[%emt 0:13:34]} 28. Rxa1 {
[%emt 0:00:10]} Bxa1 {[%emt 0:00:12]} 29. Rxa1 {[%emt 0:00:10]} Rxe4 {
[%emt 0:00:31]} 30. Rd1 {[%emt 0:00:25]} Re5 {[%emt 0:00:08]} 31. Nc7 {
[%emt 0:01:18]} Rb8 {[%emt 0:00:09]} 32. Qxf4 {[%emt 0:00:43]} Rf5 {
[%emt 0:01:04]} 33. Qe4 {[%emt 0:02:21]} Qd7 {[%emt 0:00:50]} 34. Qc6 {
[%emt 0:00:58]} Rxf2 {[%emt 0:01:47]} 35. Kxf2 {[%emt 0:02:17]} Rf8+ {
[%emt 0:00:56]} 36. Kg1 {[%emt 0:00:20]} Qg4 {[%emt 0:00:04]} 37. Qc2 {
[%emt 0:01:39]} Rf7 {[%emt 0:00:42]} 38. h3 {[%emt 0:01:04]} Qg3 {
[%emt 0:00:23]} 39. Qd3 {[%emt 0:03:00]} Qf2+ {[%emt 0:00:55]} 40. Kh1 {
[%emt 0:00:13]} Nd7 {[%emt 0:00:05]} 41. Nd5 {[%emt 0:01:46]} Ne5 {
[%emt 0:03:01]} 42. Ne7+ {[%emt 0:04:37]} Kf8 {[%emt 0:00:17]} 43. Qd4 {
[%emt 0:01:32]} Qe2 {[%emt 0:01:05]} 44. Nc6 {[%emt 0:03:47]} 1-0